[Event "Early-Titled-Tuesday-Blitz-February-27-2024"]
[Site "Chess.com"]
[Date "2024.02.27"]
[Round "3"]
[White "BozeKat"]
[Black "Honiex"]
[Result "0-1"]
[WhiteElo "2147"]
[BlackElo "2542"]
[TimeControl "180+1"]
[EndTime "8:28:16 PST"]
[Termination "Honiex won by checkmate"]

1. d4 {[%clk 0:03:00.9]} 1... Nc6 {[%clk 0:02:56.6]} 2. d5 {[%clk 0:03:00.2]}
2... Ne5 {[%clk 0:02:56.7]} 3. Bf4 {[%clk 0:02:55.1]} 3... Ng6 {[%clk
0:02:55.4]} 4. Bg3 {[%clk 0:02:52.7]} 4... Nf6 {[%clk 0:02:55.3]} 5. Nc3 {[%clk
0:02:51.9]} 5... e6 {[%clk 0:02:50.1]} 6. e4 {[%clk 0:02:50.8]} 6... Bb4 {[%clk
0:02:49.2]} 7. Qd4 {[%clk 0:02:43.2]} 7... Bxc3+ {[%clk 0:02:33.8]} 8. bxc3
{[%clk 0:02:44.1]} 8... O-O {[%clk 0:02:29.6]} 9. c4 {[%clk 0:02:36.5]} 9...
exd5 {[%clk 0:02:25.9]} 10. cxd5 {[%clk 0:02:35.8]} 10... Nxe4 {[%clk
0:02:25.9]} 11. Bd3 {[%clk 0:02:17]} 11... Nf6 {[%clk 0:02:15.2]} 12. Ne2 {[%clk
0:02:14.1]} 12... d6 {[%clk 0:02:11.6]} 13. h4 {[%clk 0:01:55.9]} 13... Nh5
{[%clk 0:01:57.4]} 14. Bh2 {[%clk 0:01:19.5]} 14... Qxh4 {[%clk 0:01:37]} 15.
Bxg6 {[%clk 0:01:18]} 15... Qxd4 {[%clk 0:01:34.9]} 16. Bxh7+ {[%clk 0:01:18.2]}
16... Kxh7 {[%clk 0:01:34.4]} 17. Nxd4 {[%clk 0:01:19.1]} 17... Kg8 {[%clk
0:01:27.9]} 18. Bxd6 {[%clk 0:01:13]} 18... Re8+ {[%clk 0:01:21.9]} 19. Kd2
{[%clk 0:01:11.2]} 19... Nf6 {[%clk 0:01:10.8]} 20. Bxc7 {[%clk 0:01:02.8]}
20... Nxd5 {[%clk 0:01:11]} 21. Bg3 {[%clk 0:00:56]} 21... Be6 {[%clk
0:01:02.3]} 22. Rh4 {[%clk 0:00:32.4]} 22... Red8 {[%clk 0:00:45.6]} 23. Rah1
{[%clk 0:00:31.9]} 23... Kf8 {[%clk 0:00:45.4]} 24. Rh8+ {[%clk 0:00:29.4]}
24... Ke7 {[%clk 0:00:45.1]} 25. Bh4+ {[%clk 0:00:29.9]} 25... f6 {[%clk
0:00:42.7]} 26. Rh7 {[%clk 0:00:20.6]} 26... Kf7 {[%clk 0:00:18.7]} 27. Rxg7+
{[%clk 0:00:17.4]} 27... Kxg7 {[%clk 0:00:16.4]} 28. Nxe6+ {[%clk 0:00:18.3]}
28... Kg6 {[%clk 0:00:16.8]} 29. Nxd8 {[%clk 0:00:19.2]} 29... Rxd8 {[%clk
0:00:16.7]} 30. Kc1 {[%clk 0:00:18.5]} 30... Nc3 {[%clk 0:00:16.2]} 31. f3
{[%clk 0:00:15.1]} 31... Rh8 {[%clk 0:00:14.3]} 32. g3 {[%clk 0:00:14.3]} 32...
Re8 {[%clk 0:00:12.1]} 33. Kb2 {[%clk 0:00:11]} 33... Nd5 {[%clk 0:00:09.6]} 34.
Rd1 {[%clk 0:00:09]} 34... Ne3 {[%clk 0:00:08.4]} 35. Rd6 {[%clk 0:00:08.8]}
35... Nc4+ {[%clk 0:00:08.4]} 36. Kc3 {[%clk 0:00:08.5]} 36... Nxd6 {[%clk
0:00:09.3]} 37. Kd4 {[%clk 0:00:08.7]} 37... Nf5+ {[%clk 0:00:09.3]} 38. Kd5
{[%clk 0:00:07.3]} 38... Nxh4 {[%clk 0:00:10.2]} 39. gxh4 {[%clk 0:00:07.7]}
39... Rh8 {[%clk 0:00:10.8]} 40. Ke6 {[%clk 0:00:07.3]} 40... Rxh4 {[%clk
0:00:11.1]} 41. f4 {[%clk 0:00:08.2]} 41... Rxf4 {[%clk 0:00:11.2]} 42. c4
{[%clk 0:00:09.1]} 42... Rxc4 {[%clk 0:00:11.4]} 43. a4 {[%clk 0:00:10]} 43...
Rxa4 {[%clk 0:00:11.9]} 44. Ke7 {[%clk 0:00:10.6]} 44... b6 {[%clk 0:00:11.9]}
45. Kf8 {[%clk 0:00:11.5]} 45... Rb4 {[%clk 0:00:12.5]} 46. Ke7 {[%clk
0:00:12.4]} 46... a5 {[%clk 0:00:13.2]} 47. Kd7 {[%clk 0:00:13.3]} 47... a4
{[%clk 0:00:14.1]} 48. Kc6 {[%clk 0:00:14.2]} 48... a3 {[%clk 0:00:15]} 49. Kd5
{[%clk 0:00:14.2]} 49... Rb2 {[%clk 0:00:15.6]} 50. Ke4 {[%clk 0:00:15.1]} 50...
a2 {[%clk 0:00:16]} 51. Kd5 {[%clk 0:00:16]} 51... a1=Q {[%clk 0:00:16.3]} 52.
Kd6 {[%clk 0:00:16.9]} 52... Qd1+ {[%clk 0:00:16.5]} 53. Ke7 {[%clk 0:00:17.8]}
53... Re2+ {[%clk 0:00:16.3]} 54. Kf8 {[%clk 0:00:17.3]} 54... Qd8# {[%clk
0:00:16.3]} 0-1

[Event "Early-Titled-Tuesday-Blitz-February-27-2024"]
[Site "Chess.com"]
[Date "2024.02.27"]
[Round "3"]
[White "xamax2000"]
[Black "Zq1"]
[Result "0-1"]
[WhiteElo "2831"]
[BlackElo "2633"]
[TimeControl "180+1"]
[EndTime "8:28:18 PST"]
[Termination "Zq1 won by resignation"]

1. Nf3 {[%clk 0:03:00.9]} 1... Nf6 {[%clk 0:02:59]} 2. c4 {[%clk 0:03:00.5]}
2... c5 {[%clk 0:02:57.9]} 3. g3 {[%clk 0:02:59.2]} 3... b6 {[%clk 0:02:57.4]}
4. Bg2 {[%clk 0:02:59.1]} 4... Bb7 {[%clk 0:02:58]} 5. O-O {[%clk 0:03:00]} 5...
g6 {[%clk 0:02:57.8]} 6. Nc3 {[%clk 0:02:57.6]} 6... Bg7 {[%clk 0:02:57.3]} 7.
e3 {[%clk 0:02:56.6]} 7... O-O {[%clk 0:02:53.7]} 8. d4 {[%clk 0:02:56.9]} 8...
cxd4 {[%clk 0:02:53.8]} 9. exd4 {[%clk 0:02:57.1]} 9... d5 {[%clk 0:02:54]} 10.
Ne5 {[%clk 0:02:57.4]} 10... e6 {[%clk 0:02:45]} 11. Bg5 {[%clk 0:02:56.4]}
11... h6 {[%clk 0:02:42.5]} 12. Be3 {[%clk 0:02:50.5]} 12... Nc6 {[%clk
0:02:37.8]} 13. Qd2 {[%clk 0:02:48.9]} 13... Kh7 {[%clk 0:02:34]} 14. Rfd1
{[%clk 0:02:46.2]} 14... Rc8 {[%clk 0:02:32.1]} 15. cxd5 {[%clk 0:02:40.3]}
15... Nxd5 {[%clk 0:02:21.2]} 16. Nxd5 {[%clk 0:02:39.3]} 16... exd5 {[%clk
0:02:14.1]} 17. Nf3 {[%clk 0:02:29.3]} 17... Ne7 {[%clk 0:02:07.8]} 18. h4
{[%clk 0:02:23.7]} 18... Nf5 {[%clk 0:02:05.5]} 19. h5 {[%clk 0:02:16.5]} 19...
Nxe3 {[%clk 0:02:01.9]} 20. hxg6+ {[%clk 0:02:10.6]} 20... fxg6 {[%clk
0:02:00.7]} 21. Qxe3 {[%clk 0:02:11.3]} 21... Qd6 {[%clk 0:01:49.2]} 22. Ne5
{[%clk 0:02:10.2]} 22... Rce8 {[%clk 0:01:44.7]} 23. Re1 {[%clk 0:02:03.5]}
23... Re7 {[%clk 0:01:38.9]} 24. Rac1 {[%clk 0:01:58.2]} 24... Rfe8 {[%clk
0:01:38]} 25. f4 {[%clk 0:01:58.1]} 25... Rc7 {[%clk 0:01:29.6]} 26. Rxc7 {[%clk
0:01:55.8]} 26... Qxc7 {[%clk 0:01:29.2]} 27. Rc1 {[%clk 0:01:56.7]} 27... Qd6
{[%clk 0:01:27.5]} 28. Bh3 {[%clk 0:01:50.3]} 28... Re7 {[%clk 0:01:25.9]} 29.
Qd3 {[%clk 0:01:44.7]} 29... Bxe5 {[%clk 0:01:13.3]} 30. fxe5 {[%clk 0:01:40]}
30... Qb4 {[%clk 0:01:02.4]} 31. Qc3 {[%clk 0:00:43.2]} 31... Qb5 {[%clk
0:00:53.6]} 32. Rf1 {[%clk 0:00:38.2]} 32... Qe2 {[%clk 0:00:44.3]} 33. Rf2
{[%clk 0:00:22.2]} 33... Qd1+ {[%clk 0:00:43]} 34. Rf1 {[%clk 0:00:22.9]} 34...
Qe2 {[%clk 0:00:42.6]} 35. Rf6 {[%clk 0:00:18.7]} 35... Ba6 {[%clk 0:00:39.8]}
36. Qa3 {[%clk 0:00:11.1]} 36... Rc7 {[%clk 0:00:30]} 37. Bf1 {[%clk 0:00:08.3]}
37... Qe1 {[%clk 0:00:26.3]} 38. Qxa6 {[%clk 0:00:03.4]} 38... Qxg3+ {[%clk
0:00:25.8]} 39. Bg2 {[%clk 0:00:03.9]} 39... Qe3+ {[%clk 0:00:17.4]} 40. Kh1
{[%clk 0:00:04.3]} 40... Qxd4 {[%clk 0:00:14.6]} 41. Qe2 {[%clk 0:00:02.9]}
41... Re7 {[%clk 0:00:09.9]} 42. Rf1 {[%clk 0:00:01.7]} 42... Rxe5 {[%clk
0:00:08.5]} 43. Qxe5 {[%clk 0:00:02.3]} 43... Qxe5 {[%clk 0:00:07.9]} 0-1

[Event "Early-Titled-Tuesday-Blitz-February-27-2024"]
[Site "Chess.com"]
[Date "2024.02.27"]
[Round "3"]
[White "Sina_Movahed"]
[Black "KacperKacprzak"]
[Result "1-0"]
[WhiteElo "2935"]
[BlackElo "2702"]
[TimeControl "180+1"]
[EndTime "8:28:21 PST"]
[Termination "Sina_Movahed won on time"]

1. Nf3 {[%clk 0:03:00.9]} 1... c5 {[%clk 0:02:57.5]} 2. e4 {[%clk 0:02:59.4]}
2... d6 {[%clk 0:02:47.8]} 3. d4 {[%clk 0:02:58.4]} 3... cxd4 {[%clk 0:02:48.7]}
4. Nxd4 {[%clk 0:02:58.7]} 4... Nf6 {[%clk 0:02:49.4]} 5. Nc3 {[%clk 0:02:58.3]}
5... a6 {[%clk 0:02:50.1]} 6. h3 {[%clk 0:02:57.4]} 6... e6 {[%clk 0:02:49.9]}
7. g4 {[%clk 0:02:56.1]} 7... h6 {[%clk 0:02:50.6]} 8. Bg2 {[%clk 0:02:47.2]}
8... Be7 {[%clk 0:02:50.8]} 9. h4 {[%clk 0:02:43.9]} 9... g6 {[%clk 0:02:46.4]}
10. Be3 {[%clk 0:02:37.7]} 10... Nc6 {[%clk 0:02:45.1]} 11. g5 {[%clk
0:02:28.6]} 11... hxg5 {[%clk 0:02:44.8]} 12. hxg5 {[%clk 0:02:28.6]} 12...
Rxh1+ {[%clk 0:02:45.7]} 13. Bxh1 {[%clk 0:02:29.1]} 13... Nh7 {[%clk
0:02:46.4]} 14. Nxc6 {[%clk 0:02:01.3]} 14... bxc6 {[%clk 0:02:47.3]} 15. Qd2
{[%clk 0:02:01.4]} 15... Bxg5 {[%clk 0:02:13.5]} 16. O-O-O {[%clk 0:01:58.6]}
16... Bxe3 {[%clk 0:02:12.4]} 17. Qxe3 {[%clk 0:01:59]} 17... e5 {[%clk
0:01:49.1]} 18. Kb1 {[%clk 0:01:58.2]} 18... Be6 {[%clk 0:01:46.2]} 19. f4
{[%clk 0:01:47.4]} 19... Qe7 {[%clk 0:01:17.7]} 20. Qb6 {[%clk 0:01:18.8]} 20...
Rc8 {[%clk 0:01:15]} 21. f5 {[%clk 0:00:54.9]} 21... Bd7 {[%clk 0:00:50.2]} 22.
Qxa6 {[%clk 0:00:49.5]} 22... Nf6 {[%clk 0:00:49.7]} 23. fxg6 {[%clk 0:00:46.6]}
23... fxg6 {[%clk 0:00:50.6]} 24. Qd3 {[%clk 0:00:47]} 24... Be6 {[%clk
0:00:42.6]} 25. Bg2 {[%clk 0:00:42.3]} 25... Nh5 {[%clk 0:00:39.7]} 26. Bf3
{[%clk 0:00:36.5]} 26... Nf4 {[%clk 0:00:39.6]} 27. Qd2 {[%clk 0:00:36.8]} 27...
Rd8 {[%clk 0:00:33.5]} 28. Ne2 {[%clk 0:00:34.9]} 28... Qf6 {[%clk 0:00:30.5]}
29. Rf1 {[%clk 0:00:33.4]} 29... Ke7 {[%clk 0:00:27.6]} 30. b3 {[%clk 0:00:28]}
30... Qg5 {[%clk 0:00:24.4]} 31. Rg1 {[%clk 0:00:25.8]} 31... Qf6 {[%clk
0:00:23.4]} 32. Nc1 {[%clk 0:00:23.7]} 32... Nh3 {[%clk 0:00:19.8]} 33. Rf1
{[%clk 0:00:24]} 33... Nf4 {[%clk 0:00:19.1]} 34. Qa5 {[%clk 0:00:23.1]} 34...
Rd7 {[%clk 0:00:19.1]} 35. a4 {[%clk 0:00:21.9]} 35... g5 {[%clk 0:00:19.3]} 36.
Bd1 {[%clk 0:00:21.1]} 36... g4 {[%clk 0:00:19.3]} 37. Nd3 {[%clk 0:00:20.6]}
37... g3 {[%clk 0:00:16.4]} 38. Qd2 {[%clk 0:00:19.3]} 38... g2 {[%clk 0:00:13]}
39. Rg1 {[%clk 0:00:19]} 39... Bh3 {[%clk 0:00:13.1]} 40. Bf3 {[%clk 0:00:17.8]}
40... Nxd3 {[%clk 0:00:09.3]} 41. Qxd3 {[%clk 0:00:18.7]} 41... Qg5 {[%clk
0:00:06.9]} 42. Bxg2 {[%clk 0:00:17.6]} 42... Bxg2 {[%clk 0:00:07.1]} 43. Qe2
{[%clk 0:00:18.2]} 43... Bf3 {[%clk 0:00:02.3]} 44. Qf2 {[%clk 0:00:18.6]} 1-0

[Event "Early-Titled-Tuesday-Blitz-February-27-2024"]
[Site "Chess.com"]
[Date "2024.02.27"]
[Round "3"]
[White "Anton_Demchenko"]
[Black "chess94cu"]
[Result "1-0"]
[WhiteElo "2912"]
[BlackElo "2689"]
[TimeControl "180+1"]
[EndTime "8:28:21 PST"]
[Termination "Anton_Demchenko won on time"]

1. e4 {[%clk 0:03:00.3]} 1... e5 {[%clk 0:02:58.3]} 2. Nf3 {[%clk 0:03:00]} 2...
Nc6 {[%clk 0:02:59]} 3. Bc4 {[%clk 0:02:59.8]} 3... Nf6 {[%clk 0:02:57.6]} 4. d3
{[%clk 0:03:00.1]} 4... h6 {[%clk 0:02:57]} 5. a4 {[%clk 0:02:58.6]} 5... d6
{[%clk 0:02:53.7]} 6. a5 {[%clk 0:02:55.5]} 6... a6 {[%clk 0:02:53.7]} 7. c3
{[%clk 0:02:55.3]} 7... g5 {[%clk 0:02:49.7]} 8. Qb3 {[%clk 0:02:54.8]} 8... Qe7
{[%clk 0:02:48.3]} 9. Nbd2 {[%clk 0:02:35.5]} 9... Bg7 {[%clk 0:02:48.6]} 10.
Nf1 {[%clk 0:02:35.4]} 10... O-O {[%clk 0:02:30.9]} 11. Ng3 {[%clk 0:02:27.4]}
11... Nd8 {[%clk 0:02:30.3]} 12. Be3 {[%clk 0:02:10.3]} 12... c6 {[%clk
0:02:18.2]} 13. Qa3 {[%clk 0:02:10.6]} 13... Be6 {[%clk 0:02:10.8]} 14. Bb3
{[%clk 0:01:45.1]} 14... c5 {[%clk 0:01:51.6]} 15. Nd2 {[%clk 0:01:34.1]} 15...
Nc6 {[%clk 0:01:50.7]} 16. Nc4 {[%clk 0:01:34.2]} 16... Rad8 {[%clk 0:01:33.6]}
17. Nb6 {[%clk 0:01:33]} 17... Nd7 {[%clk 0:01:29.9]} 18. Nd5 {[%clk 0:01:30.5]}
18... Bxd5 {[%clk 0:01:20.3]} 19. Bxd5 {[%clk 0:01:30]} 19... Nf6 {[%clk
0:01:18.5]} 20. Bc4 {[%clk 0:01:25.9]} 20... Qd7 {[%clk 0:01:14.1]} 21. h4
{[%clk 0:01:24]} 21... g4 {[%clk 0:01:13.7]} 22. Qb3 {[%clk 0:01:06.4]} 22...
Ne7 {[%clk 0:01:10.6]} 23. h5 {[%clk 0:01:04.2]} 23... d5 {[%clk 0:01:05.4]} 24.
exd5 {[%clk 0:01:04.5]} 24... Nexd5 {[%clk 0:01:06.2]} 25. Bxc5 {[%clk
0:00:47.7]} 25... Rfe8 {[%clk 0:01:06.5]} 26. O-O-O {[%clk 0:00:48.2]} 26... Nf4
{[%clk 0:01:01.3]} 27. Kb1 {[%clk 0:00:30.5]} 27... Rc8 {[%clk 0:00:57.9]} 28.
Be3 {[%clk 0:00:30]} 28... Nxg2 {[%clk 0:00:56.7]} 29. Rhg1 {[%clk 0:00:26.5]}
29... Nf4 {[%clk 0:00:47.5]} 30. Ne4 {[%clk 0:00:16.7]} 30... N6d5 {[%clk
0:00:26.5]} 31. Bxf4 {[%clk 0:00:09.6]} 31... Nxf4 {[%clk 0:00:25.7]} 32. f3
{[%clk 0:00:10.4]} 32... Kf8 {[%clk 0:00:17]} 33. fxg4 {[%clk 0:00:10.4]} 33...
f5 {[%clk 0:00:17.7]} 34. gxf5 {[%clk 0:00:10.5]} 34... Qxf5 {[%clk 0:00:13.2]}
35. Qxb7 {[%clk 0:00:10.3]} 35... Re7 {[%clk 0:00:10.3]} 36. Qxa6 {[%clk
0:00:10.8]} 36... Qxh5 {[%clk 0:00:08.3]} 37. Rdf1 {[%clk 0:00:10.6]} 37... Rb8
{[%clk 0:00:07]} 38. Rf2 {[%clk 0:00:08.6]} 38... Reb7 {[%clk 0:00:02.7]} 39. b4
{[%clk 0:00:07.7]} 39... Qh4 {[%clk 0:00:01.9]} 40. Rgf1 {[%clk 0:00:07.6]} 1-0

[Event "Early-Titled-Tuesday-Blitz-February-27-2024"]
[Site "Chess.com"]
[Date "2024.02.27"]
[Round "3"]
[White "wanyaland"]
[Black "GoValya"]
[Result "1-0"]
[WhiteElo "2506"]
[BlackElo "2271"]
[TimeControl "180+1"]
[EndTime "8:28:21 PST"]
[Termination "wanyaland won by resignation"]

1. d4 {[%clk 0:02:51.5]} 1... Nf6 {[%clk 0:02:59.3]} 2. c4 {[%clk 0:02:50.6]}
2... c5 {[%clk 0:02:59.5]} 3. d5 {[%clk 0:02:43.1]} 3... b5 {[%clk 0:02:59.2]}
4. cxb5 {[%clk 0:02:42.1]} 4... a6 {[%clk 0:02:59.2]} 5. bxa6 {[%clk 0:02:40.9]}
5... Bxa6 {[%clk 0:02:58.7]} 6. Nc3 {[%clk 0:02:38.6]} 6... g6 {[%clk
0:02:57.9]} 7. g3 {[%clk 0:02:37.3]} 7... d6 {[%clk 0:02:57.9]} 8. Bg2 {[%clk
0:02:33.3]} 8... Bg7 {[%clk 0:02:58.2]} 9. Nf3 {[%clk 0:02:31.9]} 9... O-O
{[%clk 0:02:58]} 10. O-O {[%clk 0:02:32.8]} 10... Nbd7 {[%clk 0:02:58.2]} 11.
Rb1 {[%clk 0:02:33.3]} 11... Nb6 {[%clk 0:02:57.6]} 12. b3 {[%clk 0:02:32.9]}
12... c4 {[%clk 0:02:56.2]} 13. Be3 {[%clk 0:02:30.4]} 13... Nbd7 {[%clk
0:02:35.4]} 14. Bd4 {[%clk 0:02:28.4]} 14... Qa5 {[%clk 0:02:32.1]} 15. b4
{[%clk 0:02:26.5]} 15... Qc7 {[%clk 0:02:25.4]} 16. a4 {[%clk 0:02:21.3]} 16...
Ne5 {[%clk 0:02:01.7]} 17. a5 {[%clk 0:02:19.7]} 17... Bb7 {[%clk 0:01:41.6]}
18. Bb6 {[%clk 0:02:17]} 18... Qc8 {[%clk 0:01:36.4]} 19. Nd4 {[%clk 0:02:16]}
19... Nfd7 {[%clk 0:01:30.1]} 20. Nc6 {[%clk 0:02:11.8]} 20... Nxc6 {[%clk
0:01:18.6]} 21. dxc6 {[%clk 0:02:10.6]} 21... Bxc6 {[%clk 0:01:19]} 22. Nd5
{[%clk 0:02:05.6]} 22... Bxd5 {[%clk 0:00:46.4]} 23. Bxd5 {[%clk 0:02:02]} 23...
Rb8 {[%clk 0:00:47]} 24. Be3 {[%clk 0:02:00.2]} 24... c3 {[%clk 0:00:39]} 25.
Qc2 {[%clk 0:01:58.8]} 25... Qa6 {[%clk 0:00:28]} 26. Rfc1 {[%clk 0:01:46]}
26... e6 {[%clk 0:00:26.4]} 27. Bg2 {[%clk 0:01:44.7]} 27... d5 {[%clk
0:00:26.6]} 28. Qa4 {[%clk 0:01:29]} 28... Ne5 {[%clk 0:00:12.7]} 29. b5 {[%clk
0:01:26.7]} 29... Qd6 {[%clk 0:00:10.7]} 30. Bd4 {[%clk 0:01:20.9]} 30... Nc4
{[%clk 0:00:09]} 31. Bxg7 {[%clk 0:01:19.1]} 31... Kxg7 {[%clk 0:00:09.9]} 32.
Rxc3 {[%clk 0:01:17.5]} 32... Rfc8 {[%clk 0:00:08.2]} 33. Qa1 {[%clk 0:01:13.4]}
33... Kg8 {[%clk 0:00:07.8]} 34. a6 {[%clk 0:01:12.9]} 34... Qe5 {[%clk
0:00:07.5]} 35. Rcb3 {[%clk 0:01:05.9]} 35... Qxa1 {[%clk 0:00:06.7]} 36. Rxa1
{[%clk 0:01:05.4]} 36... Nb6 {[%clk 0:00:07.1]} 37. a7 {[%clk 0:01:04.2]} 37...
Ra8 {[%clk 0:00:07.6]} 38. Ra6 {[%clk 0:01:04.3]} 38... Nc4 {[%clk 0:00:07]} 39.
b6 {[%clk 0:01:03]} 39... Nxb6 {[%clk 0:00:05.8]} 40. Rbxb6 {[%clk 0:01:02]}
40... Rc1+ {[%clk 0:00:05.3]} 41. Bf1 {[%clk 0:01:02.2]} 41... Rcc8 {[%clk
0:00:05.2]} 42. Rb7 {[%clk 0:01:01.7]} 42... Kg7 {[%clk 0:00:05.1]} 43. e3
{[%clk 0:01:01.6]} 43... Kf6 {[%clk 0:00:05.4]} 44. h4 {[%clk 0:00:59.9]} 44...
h6 {[%clk 0:00:05.8]} 45. g4 {[%clk 0:00:59.5]} 45... g5 {[%clk 0:00:06.4]} 46.
h5 {[%clk 0:00:59]} 46... Rd8 {[%clk 0:00:05.6]} 47. Bd3 {[%clk 0:00:57]} 47...
Rf8 {[%clk 0:00:05.7]} 48. f4 {[%clk 0:00:54.1]} 48... gxf4 {[%clk 0:00:05.6]}
49. exf4 {[%clk 0:00:54.8]} 49... Rg8 {[%clk 0:00:06]} 50. Be2 {[%clk 0:00:53]}
50... Rgf8 {[%clk 0:00:06.4]} 51. Kf2 {[%clk 0:00:53.1]} 51... Rg8 {[%clk
0:00:06.4]} 52. Ke3 {[%clk 0:00:53.1]} 52... Rgc8 {[%clk 0:00:06.6]} 53. Bd3
{[%clk 0:00:50.8]} 53... Kg7 {[%clk 0:00:06.6]} 54. Rxe6 {[%clk 0:00:49.2]}
54... Kg8 {[%clk 0:00:05.5]} 55. Ree7 {[%clk 0:00:49.2]} 55... Re8 {[%clk
0:00:05.3]} 56. Rxe8+ {[%clk 0:00:47.3]} 56... Rxe8+ {[%clk 0:00:06.2]} 57. Kd4
{[%clk 0:00:47.5]} 1-0

[Event "Early-Titled-Tuesday-Blitz-February-27-2024"]
[Site "Chess.com"]
[Date "2024.02.27"]
[Round "3"]
[White "Mr_ruthless"]
[Black "mestrefeitosa19"]
[Result "1-0"]
[WhiteElo "2474"]
[BlackElo "2248"]
[TimeControl "180+1"]
[EndTime "8:28:21 PST"]
[Termination "Mr_ruthless won on time"]

1. d4 {[%clk 0:03:00.9]} 1... d5 {[%clk 0:02:59.8]} 2. c4 {[%clk 0:03:01.3]}
2... e6 {[%clk 0:03:00.3]} 3. Nf3 {[%clk 0:03:01.4]} 3... Nf6 {[%clk 0:03:01]}
4. g3 {[%clk 0:02:59.7]} 4... Be7 {[%clk 0:03:01.4]} 5. Bg2 {[%clk 0:03:00]}
5... O-O {[%clk 0:03:02]} 6. O-O {[%clk 0:03:00.3]} 6... b6 {[%clk 0:03:02.6]}
7. Qc2 {[%clk 0:02:57.6]} 7... Bb7 {[%clk 0:03:02.4]} 8. b3 {[%clk 0:02:57.9]}
8... Nbd7 {[%clk 0:03:02.7]} 9. Bb2 {[%clk 0:02:58.4]} 9... c5 {[%clk
0:03:03.4]} 10. Nbd2 {[%clk 0:02:50.7]} 10... Rc8 {[%clk 0:03:03.8]} 11. dxc5
{[%clk 0:02:37.4]} 11... Nxc5 {[%clk 0:03:00.2]} 12. cxd5 {[%clk 0:02:14.2]}
12... Bxd5 {[%clk 0:02:57.5]} 13. Qb1 {[%clk 0:02:08.9]} 13... Qc7 {[%clk
0:02:51.8]} 14. Rc1 {[%clk 0:02:06.7]} 14... Qb7 {[%clk 0:02:50.3]} 15. Ng5
{[%clk 0:01:54.6]} 15... g6 {[%clk 0:01:48.4]} 16. e4 {[%clk 0:01:51.5]} 16...
Bc6 {[%clk 0:01:23.9]} 17. e5 {[%clk 0:01:28.6]} 17... Bxg2 {[%clk 0:01:20.1]}
18. exf6 {[%clk 0:01:27]} 18... Bd6 {[%clk 0:01:06.1]} 19. f3 {[%clk 0:01:24.1]}
19... h6 {[%clk 0:00:53.8]} 20. Kxg2 {[%clk 0:01:22.4]} 20... hxg5 {[%clk
0:00:53.5]} 21. Ne4 {[%clk 0:01:22.3]} 21... Rfd8 {[%clk 0:00:48.4]} 22. Nxg5
{[%clk 0:01:10]} 22... Bf8 {[%clk 0:00:43]} 23. Rd1 {[%clk 0:01:03.3]} 23... Bh6
{[%clk 0:00:42.1]} 24. h4 {[%clk 0:00:56.3]} 24... Rd5 {[%clk 0:00:37.3]} 25.
Rxd5 {[%clk 0:00:27]} 25... Qxd5 {[%clk 0:00:38.2]} 26. Qd1 {[%clk 0:00:26.1]}
26... Nd3 {[%clk 0:00:36.1]} 27. Ba3 {[%clk 0:00:22.1]} 27... b5 {[%clk
0:00:29.9]} 28. Bc1 {[%clk 0:00:19.5]} 28... b4 {[%clk 0:00:19.7]} 29. Bf4
{[%clk 0:00:19.6]} 29... Rc3 {[%clk 0:00:17.3]} 30. Qd2 {[%clk 0:00:17.8]} 30...
Nxf4+ {[%clk 0:00:11.4]} 31. Qxf4 {[%clk 0:00:18.7]} 31... Bxg5 {[%clk
0:00:12.1]} 32. hxg5 {[%clk 0:00:19.3]} 32... Rc2+ {[%clk 0:00:12.4]} 33. Kh3
{[%clk 0:00:19.4]} 33... e5 {[%clk 0:00:08.7]} 34. Qe4 {[%clk 0:00:17.1]} 34...
Qe6+ {[%clk 0:00:08.8]} 35. g4 {[%clk 0:00:16.5]} 35... Qd6 {[%clk 0:00:06.9]}
36. Rh1 {[%clk 0:00:16.5]} 36... Qd2 {[%clk 0:00:05.4]} 37. Qa8+ {[%clk
0:00:16.9]} 37... Kh7 {[%clk 0:00:01.8]} 38. Kg3+ {[%clk 0:00:17.5]} 38... Qh2+
{[%clk 0:00:02.7]} 39. Rxh2+ {[%clk 0:00:17.7]} 39... Rxh2 {[%clk 0:00:03.6]}
40. Kxh2 {[%clk 0:00:18.6]} 40... e4 {[%clk 0:00:04.4]} 41. Qf8 {[%clk 0:00:18]}
1-0

[Event "Early-Titled-Tuesday-Blitz-February-27-2024"]
[Site "Chess.com"]
[Date "2024.02.27"]
[Round "3"]
[White "LuisFSiles"]
[Black "Orest_Vovk"]
[Result "0-1"]
[WhiteElo "2322"]
[BlackElo "2575"]
[TimeControl "180+1"]
[EndTime "8:28:23 PST"]
[Termination "Orest_Vovk won on time"]

1. e4 {[%clk 0:03:00.9]} 1... g5 {[%clk 0:02:57.1]} 2. d4 {[%clk 0:02:55.2]}
2... g4 {[%clk 0:02:55.1]} 3. Qxg4 {[%clk 0:02:48.6]} 3... d5 {[%clk 0:02:53.4]}
4. Qe2 {[%clk 0:02:45.5]} 4... dxe4 {[%clk 0:02:51.5]} 5. Qxe4 {[%clk
0:02:45.3]} 5... Nf6 {[%clk 0:02:51.2]} 6. Qh4 {[%clk 0:02:39.2]} 6... Rg8
{[%clk 0:02:50.9]} 7. Bg5 {[%clk 0:02:30.2]} 7... Rxg5 {[%clk 0:02:44.7]} 8.
Qxg5 {[%clk 0:02:28.9]} 8... Qxd4 {[%clk 0:02:45.2]} 9. Nc3 {[%clk 0:02:19.4]}
9... Nc6 {[%clk 0:02:37.9]} 10. Nf3 {[%clk 0:02:05.2]} 10... Qb4 {[%clk
0:02:33.4]} 11. O-O-O {[%clk 0:01:58.9]} 11... Bd7 {[%clk 0:02:21.8]} 12. Qh4
{[%clk 0:01:19.1]} 12... Qxh4 {[%clk 0:01:55.2]} 13. Nxh4 {[%clk 0:01:18.6]}
13... Ng4 {[%clk 0:01:56.1]} 14. Ne4 {[%clk 0:01:12.5]} 14... f5 {[%clk
0:01:41.9]} 15. h3 {[%clk 0:01:02.9]} 15... fxe4 {[%clk 0:01:34.3]} 16. hxg4
{[%clk 0:01:02.3]} 16... Bxg4 {[%clk 0:01:34.4]} 17. f3 {[%clk 0:00:54.2]} 17...
exf3 {[%clk 0:01:30.8]} 18. Nxf3 {[%clk 0:00:54.7]} 18... h5 {[%clk 0:01:24.1]}
19. Bb5 {[%clk 0:00:54.2]} 19... a6 {[%clk 0:01:15.1]} 20. Bxc6+ {[%clk
0:00:54.1]} 20... bxc6 {[%clk 0:01:15.4]} 21. Rd4 {[%clk 0:00:45.7]} 21... Rb8
{[%clk 0:01:04]} 22. b3 {[%clk 0:00:35.3]} 22... Rb5 {[%clk 0:00:55.6]} 23. Re1
{[%clk 0:00:33]} 23... Bh6+ {[%clk 0:00:47.8]} 24. Kb1 {[%clk 0:00:29.9]} 24...
Bg7 {[%clk 0:00:44.5]} 25. Rde4 {[%clk 0:00:29.3]} 25... Bf6 {[%clk 0:00:44.6]}
26. Ne5 {[%clk 0:00:24.3]} 26... Bf5 {[%clk 0:00:39.6]} 27. R4e2 {[%clk
0:00:24.1]} 27... Rc5 {[%clk 0:00:33.5]} 28. Nd3 {[%clk 0:00:19.2]} 28... Rc3
{[%clk 0:00:23.5]} 29. Rf1 {[%clk 0:00:19.1]} 29... Rxd3 {[%clk 0:00:15.1]} 30.
Ref2 {[%clk 0:00:03.1]} 30... Rg3 {[%clk 0:00:05.2]} 31. Rxf5 {[%clk 0:00:03.1]}
31... h4 {[%clk 0:00:05.6]} 32. Re1 {[%clk 0:00:01]} 32... Kd7 {[%clk
0:00:04.2]} 33. Re2 {[%clk 0:00:01.4]} 33... Rg4 {[%clk 0:00:03.2]} 34. Rf3
{[%clk 0:00:01.6]} 34... Kc8 {[%clk 0:00:01.1]} 35. c3 {[%clk 0:00:02]} 35...
Kb7 {[%clk 0:00:02]} 36. Kc2 {[%clk 0:00:02.1]} 36... Rg6 {[%clk 0:00:02.5]} 37.
a4 {[%clk 0:00:02.3]} 37... Rg8 {[%clk 0:00:03.1]} 38. Rf4 {[%clk 0:00:01.7]}
38... Rg3 {[%clk 0:00:02.9]} 39. Rb4+ {[%clk 0:00:01.4]} 39... Kc8 {[%clk
0:00:02.4]} 40. Rc4 {[%clk 0:00:01.9]} 40... Rg6 {[%clk 0:00:02.9]} 41. Kd3
{[%clk 0:00:01.5]} 41... Kb7 {[%clk 0:00:03.8]} 42. Ke4 {[%clk 0:00:01.8]} 42...
h3 {[%clk 0:00:04.7]} 0-1